fUSD/lending_fUSD_20250607
["ID","MTS","AMOUNT","RATE_DAILY","PERIOD"]
[364892014,1749285065584,-279.10775981,0.0003114,7]
[364892015,1749285065594,-218.84593086,0.0003114,7]
[364892016,1749285065603,-150.0,0.00031141,7]
[364892017,1749285065613,-150.0,0.00031151,7]
[364892018,1749285065622,-279.10775981,0.0003116,7]
[364892019,1749285065633,-218.84593086,0.0003116,7]
[364892020,1749285065643,-150.0,0.0003116,7]
[364892021,1749285065652,-150.0,0.0003116,7]
[364892022,1749285065662,-905.47,0.00031161,2]
[364892023,1749285065671,-461.04,0.00031164,2]
[364892024,1749285065681,-150.0,0.00031169,7]
[364892025,1749285065693,-150.0,0.00031173,7]
[364892026,1749285065709,-150.0,0.00031177,7]
[364892027,1749285065719,-636.86062707,0.00031178,5]
[364892028,1749285065728,-279.10775981,0.00031179,7]
[364892029,1749285065738,-218.84593086,0.00031179,7]
[364892030,1749285065748,-150.0,0.00031197,7]
[364892031,1749285065759,-279.10775981,0.00031199,7]
[364892032,1749285065770,-218.84593086,0.00031199,7]
[364892033,1749285065780,-5562.0,0.000312,3]
[364892034,1749285065791,-2264.87,0.000312,31]
[364892035,1749285065802,-2264.87,0.000312,31]
[364892036,1749285065811,-2264.87,0.000312,31]
[364892037,1749285065821,-2264.87,0.000312,31]
[364892038,1749285065831,-2264.87,0.000312,31]
[364892039,1749285065841,-2264.87,0.000312,31]
[364892040,1749285065851,-2264.87,0.000312,31]
[364892041,1749285065861,-2264.87,0.000312,31]
[364892042,1749285065872,-2264.87,0.000312,31]
[364892043,1749285065882,-2264.87,0.000312,31]
[364892044,1749285065892,-2264.87,0.000312,31]
[364892045,1749285065901,-2264.87,0.000312,31]
[364892046,1749285065911,-2264.87,0.000312,31]
[364892047,1749285065920,-2264.87,0.000312,31]
[364892048,1749285065931,-2264.87,0.000312,31]
[364892049,1749285065941,-2264.87,0.000312,31]
[364892050,1749285065952,-150.0,0.00031203,7]
[364892051,1749285065962,-150.0,0.0003121,7]
[364892052,1749285065971,-150.0,0.0003121,7]
[364892053,1749285065981,-492.47750952,0.0003121,2]
[364892054,1749285065990,-150.0,0.00031213,7]
[364892055,1749285066000,-279.10775981,0.00031219,7]
[364892056,1749285066011,-218.84593086,0.00031219,7]
[364892057,1749285066022,-150.0,0.00031225,7]
[364892058,1749285066032,-150.0,0.0003123,7]
[364892059,1749285066041,-500.0,0.00031232,4]
[364892060,1749285066052,-1000.0,0.00031236,7]
[364892061,1749285066062,-279.10775981,0.00031238,7]
[364892062,1749285066072,-218.84593086,0.00031238,7]
[364892063,1749285066081,-150.0,0.00031241,7]
[364892064,1749285066091,-150.0,0.00031252,7]
[364892065,1749285066100,-150.0,0.00031252,7]
[364892066,1749285066110,-150.0,0.00031252,7]
[364892067,1749285066119,-150.0,0.00031256,7]
[364892068,1749285066128,-279.10775981,0.00031258,7]
[364892069,1749285066137,-218.84593086,0.00031258,7]
[364892070,1749285066146,-150.0,0.00031259,7]
[364892071,1749285066155,-192.752747,0.00031262,7]
[364892072,1749285066164,-192.752747,0.00031262,7]
[364892073,1749285066174,-279.10775981,0.00031278,7]
[364892074,1749285066183,-218.84593086,0.00031278,7]
[364892075,1749285066193,-150.0,0.0003128,7]
[364892076,1749285066203,-150.0,0.00031282,7]
[364892077,1749285066212,-150.0,0.00031292,7]
[364892078,1749285066221,-279.10775981,0.00031297,7]
[364892079,1749285066231,-218.84593086,0.00031297,7]
[364892080,1749285066240,-250.0,0.000313,7]
[364892081,1749285066250,-150.0,0.00031308,7]
[364892082,1749285066259,-150.0,0.00031309,7]
[364892083,1749285066268,-150.0,0.00031309,7]
[364892084,1749285066278,-279.10775981,0.00031317,7]
[364892085,1749285066288,-218.84593086,0.00031317,7]
[364892086,1749285066297,-150.0,0.00031322,7]
[364892087,1749285066306,-150.0,0.00031322,7]
[364892088,1749285066317,-150.0,0.00031322,7]
[364892089,1749285066326,-150.0,0.00031332,7]
[364892090,1749285066336,-150.0,0.00031335,7]
[364892091,1749285066346,-150.0,0.00031336,7]
[364892092,1749285066356,-279.10775981,0.00031336,7]
[364892093,1749285066366,-218.84593086,0.00031336,7]
[364892094,1749285066376,-279.10775981,0.00031356,7]
[364892095,1749285066386,-218.84593086,0.00031356,7]
[364892096,1749285066398,-150.0,0.00031359,7]
[364892097,1749285066408,-150.0,0.00031359,7]
[364892098,1749285066419,-150.0,0.00031361,7]
[364892099,1749285066428,-150.0,0.00031363,7]
[364892100,1749285066438,-281.23,0.00031369,2]
[364892101,1749285066447,-150.0,0.00031371,7]
[364892102,1749285066457,-1000.0,0.00031373,7]
[364892103,1749285066468,-279.10775981,0.00031376,7]
[364892104,1749285066478,-218.84593086,0.00031376,7]
[364892105,1749285066489,-150.0,0.00031387,7]
[364892106,1749285066498,-150.0,0.00031391,7]
[364892107,1749285066508,-279.10775981,0.00031395,7]
[364892108,1749285066518,-218.84593086,0.00031395,7]
[364892109,1749285066529,-340858.73267389,0.000314,2]
[364892110,1749285066538,-197452.36,0.000314,7]
[364892111,1749285066548,-1928.03608788,0.000314,2]
[364892112,1749285066558,-151.0,0.000314,7]
[364892113,1749285066568,-151.0,0.000314,7]
[364892114,1749285066578,-151.0,0.000314,7]
[364892115,1749285066587,-151.0,0.000314,7]
[364892116,1749285066597,-250.0,0.000314,7]
[364892117,1749285066608,-252.7,0.000314,7]
[364892118,1749285066618,-151.0,0.000314,7]
[364892119,1749285066628,-180.094485,0.000314,7]
[364892120,1749285066638,-151.0,0.000314,7]
[364892121,1749285066648,-256.632091,0.000314,7]
[364892122,1749285066657,-256.632091,0.000314,7]
[364892123,1749285066667,-151.789566,0.000314,7]
[364892124,1749285066676,-1439.761915,0.000314,7]
[364892125,1749285066686,-151.0,0.000314,7]
[364892126,1749285066699,-151.0,0.000314,7]
[364892127,1749285066708,-1439.761915,0.000314,7]
[364892128,1749285066718,-151.0,0.000314,7]
[364892129,1749285066728,-151.0,0.000314,7]
[364892130,1749285066737,-151.0,0.000314,7]
[364892131,1749285066747,-151.0,0.000314,7]
[364892132,1749285066756,-151.0,0.000314,7]
[364892133,1749285066842,-151.0,0.000314,7]
[364892134,1749285066854,-850.307111,0.000314,7]
[364892135,1749285066864,-263.744879,0.000314,7]
[364892136,1749285066874,-263.744879,0.000314,7]
[364892137,1749285066898,-850.307111,0.000314,7]
[364892138,1749285066908,-151.0,0.000314,7]
[364892139,1749285066918,-192.752747,0.000314,7]
[364892140,1749285066928,-192.752747,0.000314,7]
[364892141,1749285066937,-151.0,0.000314,7]
[364892142,1749285066947,-153.754553,0.000314,7]
[364892143,1749285066957,-153.754553,0.000314,7]
[364892144,1749285066967,-192.062464,0.000314,7]
[364892145,1749285066976,-667.336566,0.000314,7]
[364892146,1749285066986,-667.336566,0.000314,7]
[364892147,1749285066995,-412.452198,0.000314,7]
[364892148,1749285067005,-412.452198,0.000314,7]
[364892149,1749285067014,-977.448713,0.000314,7]
[364892150,1749285067024,-977.448713,0.000314,7]
[364892151,1749285067033,-151.0,0.000314,7]
[364892152,1749285067043,-179.340194,0.000314,7]
[364892153,1749285067053,-179.340194,0.000314,7]
[364892154,1749285067062,-196.779148,0.000314,7]
[364892155,1749285067072,-196.779148,0.000314,7]
[364892156,1749285067082,-862.422387,0.000314,7]
[364892157,1749285067091,-862.422387,0.000314,7]
[364892158,1749285067101,-151.0,0.000314,7]
[364892159,1749285067111,-1642.080816,0.000314,7]
[364892160,1749285067121,-151.0,0.000314,7]
[364892161,1749285067131,-1642.080816,0.000314,7]
[364892162,1749285067142,-151.0,0.000314,7]
[364892163,1749285067152,-463.505806,0.000314,7]
[364892164,1749285067162,-645.346851,0.000314,7]
[364892165,1749285067172,-463.505806,0.000314,7]
[364892166,1749285067181,-645.346851,0.000314,7]
[364892167,1749285067191,-2026.87948,0.000314,7]
[364892168,1749285067201,-2026.87948,0.000314,7]
[364892169,1749285067210,-229.208143,0.000314,7]
[364892170,1749285067220,-205.49714,0.000314,7]
[364892171,1749285067229,-205.49714,0.000314,7]
[364892172,1749285067240,-150.0,0.00031403,7]
[364892173,1749285067250,-150.0,0.00031409,7]
[364892174,1749285067260,-150.0,0.00031411,7]
[364892175,1749285067270,-150.0,0.00031414,7]
[364892176,1749285067281,-279.10775981,0.00031415,7]
[364892177,1749285067292,-218.84593086,0.00031415,7]
[364892178,1749285067303,-150.0,0.00031419,7]
[364892179,1749285067318,-19030.55547967,0.0003143,4]
[364892180,1749285067329,-279.10775981,0.00031435,7]
[364892181,1749285067339,-218.84593086,0.00031435,7]
[364892182,1749285067349,-150.0,0.0003144,7]
[364892183,1749285067359,-150.0,0.00031447,7]
[364892184,1749285067369,-150.0,0.00031451,7]
[364892185,1749285067380,-279.10775981,0.00031454,7]
[364892186,1749285067390,-218.84593086,0.00031454,7]
[364892187,1749285067399,-150.0,0.00031459,7]
[364892188,1749285067409,-150.0,0.00031466,7]
[364892189,1749285067419,-279.10775981,0.00031474,7]
[364892190,1749285067429,-218.84593086,0.00031474,7]
[364892191,1749285067438,-150.0,0.00031475,7]
[364892192,1749285067448,-150.0,0.00031484,7]
[364892193,1749285067458,-2985.2313671,0.00031486,25]
[364892194,1749285067468,-150.0,0.0003149,7]
[364892195,1749285067478,-150.0,0.00031493,7]
[364892196,1749285067488,-279.10775981,0.00031494,7]
[364892197,1749285067498,-218.84593086,0.00031494,7]
[364892198,1749285067508,-150.0,0.00031502,7]
[364892199,1749285067517,-150.0,0.00031509,7]
[364892200,1749285067527,-150.0,0.00031509,7]
[364892201,1749285067539,-1000.0,0.0003151,7]
[364892202,1749285067549,-279.10775981,0.00031513,7]
[364892203,1749285067559,-218.84593086,0.00031513,7]
[364892204,1749285067569,-150.0,0.00031519,7]
[364892205,1749285067581,-150.0,0.0003153,7]
[364892206,1749285067591,-150.0,0.0003153,7]
[364892207,1749285067601,-150.0,0.0003153,7]
[364892208,1749285067610,-279.10775981,0.00031533,7]
[364892209,1749285067621,-218.84593086,0.00031533,7]
[364892210,1749285067631,-150.0,0.00031545,7]
[364892211,1749285067641,-279.10775981,0.00031553,7]
[364892212,1749285067651,-218.84593086,0.00031553,7]
[364892213,1749285067661,-150.0,0.00031558,7]
[364892214,1749285067670,-150.0,0.00031559,7]
[364892215,1749285067680,-150.0,0.00031565,7]
[364892216,1749285067691,-150.0,0.00031565,7]
[364892217,1749285067706,-150.0,0.00031565,7]
[364892218,1749285067716,-150.0,0.0003157,7]
[364892219,1749285067727,-150.0,0.00031571,7]
[364892220,1749285067737,-279.10775981,0.00031572,7]
[364892221,1749285067747,-218.84593086,0.00031572,7]
[364892222,1749285067757,-150.0,0.00031586,7]
[364892223,1749285067768,-279.10775981,0.00031592,7]
[364892224,1749285067784,-218.84593086,0.00031592,7]
[364892225,1749285067794,-150.0,0.00031598,7]
[364892226,1749285067804,-204.64656646,0.00031599,3]
[364892227,1749285067814,-150.0,0.00031609,7]
[364892228,1749285067823,-150.0,0.0003161,7]
[364892229,1749285067833,-279.10775981,0.00031612,7]
[364892230,1749285067843,-218.84593086,0.00031612,7]
[364892231,1749285067853,-150.0,0.00031614,7]
[364892232,1749285067864,-150.0,0.00031624,7]
[364892233,1749285067874,-279.10775981,0.00031631,7]
[364892234,1749285067883,-218.84593086,0.00031631,7]
[364892235,1749285067893,-297.50576724,0.00031637,2]
[364892236,1749285067903,-150.0,0.00031641,7]
[364892237,1749285067913,-155.0,0.00031644,14]
[364892238,1749285067923,-150.0,0.00031646,7]
[364892239,1749285067933,-1000.0,0.00031647,7]
[364892240,1749285067943,-150.0,0.00031649,7]
[364892241,1749285067954,-150.0,0.0003165,7]
[364892242,1749285067964,-279.10775981,0.00031651,7]
[364892243,1749285067974,-218.84593086,0.00031651,7]
[364892244,1749285067983,-150.0,0.00031658,7]
[364892245,1749285067994,-150.0,0.00031658,7]
[364892246,1749285068004,-150.0,0.00031669,7]
[364892247,1749285068014,-279.10775981,0.0003167,7]
[364892248,1749285068023,-218.84593086,0.0003167,7]
[364892249,1749285068034,-150.0,0.00031677,7]
[364892250,1749285068045,-150.0,0.00031689,7]
[364892251,1749285068054,-279.10775981,0.0003169,7]
[364892252,1749285068063,-218.84593086,0.0003169,7]
[364892253,1749285068073,-150.0,0.00031697,7]
[364892254,1749285068083,-250.0,0.000317,7]
[364892255,1749285068092,-2264.87,0.000317,31]
[364892256,1749285068102,-2264.87,0.000317,31]
[364892257,1749285068111,-2264.87,0.000317,31]
[364892258,1749285068120,-2264.87,0.000317,31]
[364892259,1749285068130,-2264.87,0.000317,31]
[364892260,1749285068140,-2264.87,0.000317,31]
[364892261,1749285068150,-2264.87,0.000317,31]
[364892262,1749285068159,-2264.87,0.000317,31]
[364892263,1749285068169,-2264.87,0.000317,31]
[364892264,1749285068178,-2264.87,0.000317,31]
[364892265,1749285068187,-2264.87,0.000317,31]
[364892266,1749285068196,-2264.87,0.000317,31]
[364892267,1749285068206,-2264.87,0.000317,31]
[364892268,1749285068221,-2264.87,0.000317,31]
[364892269,1749285068230,-2264.87,0.000317,31]
[364892270,1749285068240,-2264.87,0.000317,31]
[364892271,1749285068250,-2264.87,0.000317,31]
[364892272,1749285068260,-2264.87,0.000317,31]
[364892273,1749285068270,-2264.87,0.000317,31]
[364892274,1749285068279,-2264.87,0.000317,31]
[364892275,1749285068288,-2264.87,0.000317,31]
[364892276,1749285068298,-2264.87,0.000317,31]
[364892277,1749285068307,-2264.87,0.000317,31]
[364892278,1749285068318,-2264.87,0.000317,31]
[364892279,1749285068327,-150.0,0.00031703,7]
[364892280,1749285068336,-150.0,0.00031708,7]
[364892281,1749285068347,-279.10775981,0.0003171,7]
[364892282,1749285068356,-218.84593086,0.0003171,7]
[364892283,1749285068366,-150.0,0.00031723,2]
[364892284,1749285068376,-150.0,0.00031725,7]
[364892285,1749285068385,-150.0,0.00031727,7]
[364892286,1749285068395,-150.0,0.00031729,7]
[364892287,1749285068405,-150.0,0.00031729,7]
[364892288,1749285068415,-279.10775981,0.00031729,7]
[364892289,1749285068424,-218.84593086,0.00031729,7]
[364892290,1749285068433,-174.61919141,0.00031738,2]
[364892291,1749285068444,-239.84119403,0.00031738,2]
[364892292,1749285068454,-279.10775981,0.00031749,7]
[364892293,1749285068463,-218.84593086,0.00031749,7]
[364892294,1749285068473,-150.0,0.00031752,7]
[364892295,1749285068483,-150.0,0.00031755,7]
[364892296,1749285068493,-150.0,0.00031758,7]
[364892297,1749285068502,-150.0,0.00031768,7]
[364892298,1749285068512,-279.10775981,0.00031769,7]
[364892299,1749285068522,-218.84593086,0.00031769,7]
[364892300,1749285068532,-500.0,0.0003178,5]
[364892301,1749285068542,-150.0,0.0003178,7]
[364892302,1749285068551,-150.0,0.00031782,7]
[364892303,1749285068561,-1000.0,0.00031784,7]
[364892304,1749285068571,-279.10775981,0.00031788,7]
[364892305,1749285068581,-218.84593086,0.00031788,7]
[364892306,1749285068592,-1660.93,0.000318,8]
[364892307,1749285068602,-2000.0,0.000318,2]
[364892308,1749285068613,-5562.0,0.000318,5]
[364892309,1749285068625,-249.83161344,0.00031808,7]
[364892310,1749285068636,-151.85130498,0.00031808,7]
[364892311,1749285068646,-279.10775981,0.00031808,7]
[364892312,1749285068656,-218.84593086,0.00031808,7]
[364892313,1749285068666,-152.75181426,0.00031808,7]
[364892314,1749285068675,-154.8728504,0.00031808,7]
[364892315,1749285068685,-165.73181334,0.00031808,7]
[364892316,1749285068697,-181.17106969,0.00031808,7]
[364892317,1749285068708,-152.23285974,0.00031808,7]
[364892318,1749285068718,-170.14648559,0.00031808,7]
[364892319,1749285068727,-174.76974366,0.00031808,7]
[364892320,1749285068738,-196.79829365,0.00031808,7]
[364892321,1749285068748,-500.0,0.0003182,36]
[364892322,1749285068758,-747.37,0.00031893,2]
[364892323,1749285068768,-500.0,0.0003192,32]
[364892324,1749285068777,-1000.0,0.00031921,7]
[364892325,1749285068789,-311.68,0.00031948,2]
[364892326,1749285068799,-168.0,0.00031953,2]
[364892327,1749285068809,-168.0,0.00031953,2]
[364892328,1749285068818,-168.0,0.00031953,7]
[364892329,1749285068828,-168.0,0.00031953,2]
[364892330,1749285068837,-168.0,0.00031953,2]
[364892331,1749285068847,-168.0,0.00031953,2]
[364892332,1749285068858,-168.0,0.00031953,7]
[364892333,1749285068868,-168.0,0.00031953,2]
[364892334,1749285068878,-168.0,0.00031953,2]
[364892335,1749285068888,-168.0,0.00031954,2]
[364892336,1749285068897,-168.0,0.00031954,7]
[364892337,1749285068907,-168.0,0.00031954,2]
[364892338,1749285068916,-168.0,0.00031955,2]
[364892339,1749285068926,-168.0,0.00031955,2]
[364892340,1749285068936,-168.0,0.00031955,2]
[364892341,1749285068946,-168.0,0.00031955,2]
[364892342,1749285068957,-168.0,0.00031955,7]
[364892343,1749285068967,-168.0,0.00031956,2]
[364892344,1749285068978,-50000.0,0.00032,23]
[364892345,1749285068988,-1539.50252563,0.00032,2]
[364892346,1749285068997,-35000.0,0.00032,2]
[364892347,1749285069007,-11468.36400153,0.00032,2]
[364892348,1749285069018,-877.73504705,0.00032,2]
[364892349,1749285069028,-18762.08726887,0.00032,7]
[364892350,1749285069038,-1800.0,0.00032,33]
[364892351,1749285069048,-12774.03067351,0.00032,30]
[364892352,1749285069058,-1000.0,0.00032,7]
[364892353,1749285069070,-197452.36,0.00032,7]
[364892354,1749285069081,-7493.0,0.00032,30]
[364892355,1749285069093,-400.0,0.00032,30]
[364892356,1749285069103,-151.0,0.00032,7]
[364892357,1749285069113,-151.0,0.00032,7]
[364892358,1749285069123,-151.0,0.00032,7]
[364892359,1749285069134,-151.0,0.00032,7]
[364892360,1749285069145,-151.0,0.00032,7]
[364892361,1749285069157,-151.0,0.00032,7]
[364892362,1749285069169,-151.0,0.00032,7]
[364892363,1749285069180,-153.754553,0.00032,7]
[364892364,1749285069197,-153.754553,0.00032,7]
[364892365,1749285069212,-667.336566,0.00032,7]
[364892366,1749285069224,-667.336566,0.00032,7]
[364892367,1749285069235,-412.452198,0.00032,7]
[364892368,1749285069245,-412.452198,0.00032,7]
[364892369,1749285069255,-977.448713,0.00032,7]
[364892370,1749285069265,-977.448717,0.00032,7]
[364892371,1749285069276,-151.0,0.00032,7]
[364892372,1749285069286,-179.340194,0.00032,7]
[364892373,1749285069296,-179.340194,0.00032,7]
[364892374,1749285069306,-196.779148,0.00032,7]
[364892375,1749285069316,-196.779146,0.00032,7]
[364892376,1749285069327,-1642.080816,0.00032,7]
[364892377,1749285069338,-1642.080818,0.00032,7]
[364892378,1749285069348,-463.505806,0.00032,7]
[364892379,1749285069358,-645.346851,0.00032,7]
[364892380,1749285069369,-463.505805,0.00032,7]
[364892381,1749285069379,-645.346851,0.00032,7]
[364892382,1749285069390,-2026.87948,0.00032,7]
[364892383,1749285069400,-2026.87947198,0.00032,7]
[364892384,1749285069411,-205.49714,0.00032,7]
[364892385,1749285069421,-205.497141,0.00032,7]
[364892386,1749285069431,-222.0,0.00032,14]
[364892387,1749285069445,-2985.2313671,0.00032038,26]
[364892388,1749285069456,-1000.0,0.00032058,7]
[364892389,1749285069467,-151.0,0.000321,7]
[364892390,1749285069477,-151.0,0.000321,7]
[364892391,1749285069488,-256.632091,0.000321,7]
[364892392,1749285069501,-256.632091,0.000321,7]
[364892393,1749285069511,-1439.761915,0.000321,7]
[364892394,1749285069524,-1439.761915,0.000321,7]
[364892395,1749285069536,-151.0,0.000321,7]
[364892396,1749285069547,-151.0,0.000321,7]
[364892397,1749285069557,-850.307111,0.000321,7]
[364892398,1749285069568,-263.744879,0.000321,7]
[364892399,1749285069580,-263.744879,0.000321,7]
[364892400,1749285069590,-850.307111,0.000321,7]
[364892401,1749285069600,-500.0,0.000321,2]
[364892402,1749285069610,-500.0,0.000321,2]
[364892403,1749285069620,-500.0,0.000321,2]
[364892404,1749285069631,-500.0,0.000321,2]
[364892405,1749285069647,-500.0,0.000321,2]
[364892406,1749285069658,-500.0,0.000321,2]
[364892407,1749285069668,-500.0,0.000321,2]
[364892408,1749285069679,-500.0,0.000321,2]
[364892409,1749285069689,-500.0,0.000321,2]
[364892410,1749285069705,-500.0,0.000321,2]
[364892411,1749285069715,-500.0,0.000321,2]
[364892412,1749285069726,-500.0,0.000321,2]
[364892413,1749285069736,-500.0,0.000321,2]
[364892414,1749285069748,-500.0,0.000321,2]
[364892415,1749285069760,-500.0,0.000321,2]
[364892416,1749285069770,-500.0,0.000321,2]
[364892417,1749285069783,-500.0,0.000321,2]
[364892418,1749285069795,-500.0,0.000321,2]
[364892419,1749285069806,-500.0,0.000321,2]
[364892420,1749285069817,-500.0,0.000321,2]
[364892421,1749285069828,-500.0,0.000321,2]
[364892422,1749285069840,-500.0,0.000321,2]
[364892423,1749285069851,-500.0,0.000321,2]
[364892424,1749285069862,-500.0,0.000321,2]
[364892425,1749285069874,-500.0,0.000321,2]
[364892426,1749285069885,-500.0,0.000321,2]
[364892427,1749285069895,-500.0,0.000321,2]
[364892428,1749285069906,-500.0,0.000321,2]
[364892429,1749285069917,-500.0,0.000321,2]
[364892430,1749285069927,-500.0,0.000321,2]
[364892431,1749285069938,-500.0,0.000321,2]
[364892432,1749285069949,-500.0,0.000321,2]
[364892433,1749285069963,-500.0,0.000321,2]
[364892434,1749285069974,-500.0,0.000321,2]
[364892435,1749285069984,-500.0,0.000321,2]
[364892436,1749285069995,-500.0,0.000321,2]
[364892437,1749285070006,-500.0,0.000321,2]
[364892438,1749285070016,-500.0,0.000321,2]
[364892439,1749285070026,-500.0,0.000321,2]
[364892440,1749285070037,-500.0,0.000321,2]
[364892441,1749285070048,-500.0,0.000321,2]
[364892442,1749285070058,-500.0,0.000321,2]
[364892443,1749285070068,-500.0,0.000321,2]
[364892444,1749285070084,-500.0,0.000321,2]
[364892445,1749285070096,-500.0,0.000321,2]
[364892446,1749285070106,-500.0,0.000321,2]
[364892447,1749285070118,-500.0,0.000321,2]
[364892448,1749285070129,-500.0,0.000321,2]
[364892449,1749285070140,-500.0,0.000321,2]
[364892450,1749285070151,-500.0,0.000321,2]
[364892451,1749285070161,-500.0,0.000321,2]
[364892452,1749285070172,-500.0,0.000321,2]
[364892453,1749285070183,-500.0,0.000321,2]
[364892454,1749285070194,-500.0,0.000321,2]
[364892455,1749285070207,-500.0,0.000321,2]
[364892456,1749285070218,-500.0,0.000321,2]
[364892457,1749285070228,-500.0,0.000321,2]
[364892458,1749285070238,-500.0,0.000321,2]
[364892459,1749285070248,-500.0,0.000321,2]
[364892460,1749285070259,-500.0,0.000321,2]
[364892461,1749285070270,-500.0,0.000321,2]
[364892462,1749285070281,-500.0,0.000321,2]
[364892463,1749285070292,-500.0,0.000321,2]
[364892464,1749285070303,-500.0,0.000321,2]
[364892465,1749285070315,-500.0,0.000321,2]
[364892466,1749285070326,-500.0,0.000321,2]
[364892467,1749285070336,-500.0,0.000321,2]
[364892468,1749285070347,-500.0,0.000321,2]
[364892469,1749285070358,-500.0,0.000321,2]
[364892470,1749285070369,-500.0,0.000321,2]
[364892471,1749285070380,-500.0,0.000321,2]
[364892472,1749285070391,-500.0,0.000321,2]
[364892473,1749285070402,-500.0,0.000321,2]
[364892474,1749285070412,-500.0,0.000321,2]
[364892475,1749285070423,-500.0,0.000321,2]
[364892476,1749285070434,-500.0,0.000321,2]
[364892477,1749285070445,-500.0,0.000321,2]
[364892478,1749285070457,-500.0,0.000321,2]
[364892479,1749285070468,-500.0,0.000321,2]
[364892480,1749285070479,-500.0,0.000321,2]
[364892481,1749285070490,-500.0,0.000321,2]
[364892482,1749285070501,-500.0,0.000321,2]
[364892483,1749285070512,-500.0,0.000321,2]
[364892484,1749285070528,-500.0,0.000321,2]
[364892485,1749285070539,-500.0,0.000321,2]
[364892486,1749285070549,-500.0,0.000321,2]
[364892487,1749285070560,-500.0,0.000321,2]
[364892488,1749285070571,-500.0,0.000321,2]
[364892489,1749285070582,-500.0,0.000321,2]
[364892490,1749285070592,-500.0,0.000321,2]
[364892491,1749285070603,-500.0,0.000321,2]
[364892492,1749285070613,-500.0,0.000321,2]
[364892493,1749285070624,-500.0,0.000321,2]
[364892494,1749285070634,-500.0,0.000321,2]
[364892495,1749285070645,-500.0,0.000321,2]
[364892496,1749285070656,-500.0,0.000321,2]
[364892497,1749285070666,-500.0,0.000321,2]
[364892498,1749285070677,-500.0,0.000321,2]
[364892499,1749285070688,-500.0,0.000321,2]
[364892500,1749285070703,-500.0,0.000321,2]
[364892501,1749285070716,-936.0,0.000321,2]
[364892502,1749285070727,-862.422387,0.000321,7]
[364892503,1749285070737,-862.422387,0.000321,7]
[364892504,1749285070748,-500.0,0.000321,2]
[364892505,1749285070759,-500.0,0.000321,2]
[364892506,1749285070770,-500.0,0.000321,2]
[364892507,1749285070782,-500.0,0.000321,2]
[364892508,1749285070793,-500.0,0.000321,2]
[364892509,1749285070804,-500.0,0.000321,2]
[364892510,1749285070816,-500.0,0.000321,2]
[364892511,1749285070827,-500.0,0.000321,2]
[364892512,1749285070838,-500.0,0.000321,2]
[364892513,1749285070849,-500.0,0.000321,2]